fUST/lending_fUST_20260111
["ID","MTS","AMOUNT","RATE_DAILY","PERIOD"]
[401321784,1768134644735,-1000.0,0.00017098,2]
[401321785,1768134644744,-1000.0,0.00017098,2]
[401321786,1768134644753,-4000.0,0.00017108,2]
[401321787,1768134644763,-4000.0,0.00017108,2]
[401321788,1768134644772,-4000.0,0.00017108,2]
[401321789,1768134644781,-1962.04250286,0.00017108,2]
[401321790,1768134644791,-3000.0,0.00017108,2]
[401321791,1768134644801,-4000.0,0.00017108,2]
[401321792,1768134644810,-4000.0,0.00017108,2]
[401321793,1768134644819,-1901.71937705,0.0001726,2]
[401321794,1768134644828,-354.84,0.000173,2]
[401321795,1768134644837,-192.83,0.000173,2]
[401321796,1768134644846,-5000.0,0.00017412,2]
[401321797,1768134644856,-2400.0,0.00017508,2]
[401321798,1768134644865,-4000.0,0.00017534,2]
[401321799,1768134644874,-4000.0,0.00017534,2]
[401321800,1768134644884,-4000.0,0.00017534,2]
[401321801,1768134644893,-4500.0,0.00017656,2]
[401321802,1768134644903,-4500.0,0.00017656,2]
[401321803,1768134644911,-878.46600243,0.00017656,2]
[401321804,1768134644922,-90377.964834,0.00017656,2]
[401321805,1768134644933,-4500.0,0.00017656,2]
[401321806,1768134644943,-4500.0,0.00017656,2]
[401321807,1768134644954,-1041.66666667,0.00017722,2]
[401321808,1768134644965,-354.84,0.000178,2]
[401321809,1768134644975,-192.83,0.000178,2]
[401321810,1768134644986,-444.72420012,0.00018056,2]
[401321811,1768134644996,-500.0,0.00018082,2]
[401321812,1768134645006,-4500.0,0.00018082,2]
[401321813,1768134645016,-4500.0,0.00018082,2]
[401321814,1768134645026,-1642.48470631,0.00018204,2]
[401321815,1768134645132,-2495.04726907,0.00018204,2]
[401321816,1768134645143,-5000.0,0.00018204,2]
[401321817,1768134645153,-5000.0,0.00018204,2]
[401321818,1768134645163,-354.84,0.000183,2]
[401321819,1768134645173,-192.83,0.000183,2]
[401321820,1768134645185,-585.11053,0.00018493,2]
[401321821,1768134645197,-2870.56440789,0.0001858,2]
[401321823,1768134645207,-431.47326578,0.00018599,2]
[401321824,1768134645216,-1500.0,0.0001863,2]
[401321825,1768134645226,-3567.54835774,0.0001863,2]
[401321826,1768134645235,-979.02672324,0.0001871,2]
[401321827,1768134645245,-4500.0,0.00018752,2]
[401321828,1768134645255,-1417.01439994,0.00018752,2]
[401321829,1768134645265,-1000.0,0.00018807,2]
[401321830,1768134645275,-1000.0,0.00018807,2]
[401321831,1768134645285,-579.0,0.00018807,2]
[401321832,1768134645295,-5000.0,0.00018863,2]
[401321833,1768134645305,-354.84,0.000189,2]
[401321834,1768134645315,-303.10001603,0.000189,2]
[401321835,1768134645325,-192.83,0.000189,2]
[401321836,1768134645335,-303.10001603,0.000189,2]
[401321837,1768134645346,-494.3,0.00018946,2]
[401321838,1768134645356,-303.10001603,0.00019089,2]
[401321839,1768134645366,-303.10001603,0.00019089,2]
[401321841,1768134645376,-506.7938,0.00019178,2]
[401321842,1768134645387,-506.7938,0.00019178,2]
[401321843,1768134645397,-506.79,0.00019178,2]
[401321844,1768134645407,-163.88,0.000192,2]
[401321845,1768134645417,-166.96,0.000192,2]
[401321846,1768134645426,-2140.41,0.000192,2]
[401321847,1768134645435,-167.58,0.000192,2]
[401321848,1768134645444,-13367.01,0.000192,2]
[401321849,1768134645454,-303.10001603,0.00019278,2]
[401321850,1768134645464,-303.10001603,0.00019278,2]
[401321851,1768134645474,-354.84,0.000194,2]
[401321853,1768134645484,-192.83,0.000194,2]
[401321854,1768134645494,-303.10001603,0.00019467,2]
[401321855,1768134645503,-303.10001603,0.00019467,2]
[401321856,1768134645513,-303.10001603,0.00019656,2]
[401321857,1768134645521,-303.10001603,0.00019656,2]
[401321858,1768134645531,-454.65002405,0.00019845,4]
[401321859,1768134645540,-454.65002405,0.00019845,4]
[401321860,1768134645550,-354.84,0.000199,2]
[401321861,1768134645560,-192.83,0.000199,2]
[401321862,1768134645571,-506.7938,0.0002,4]
[401321863,1768134645581,-221.8662,0.0002,4]
[401321865,1768134645590,-151.97857558,0.0002,2]
[401321866,1768134645600,-52113.00553346,0.0002,2]
[401321867,1768134645609,-454.65002405,0.00020034,4]
[401321868,1768134645618,-454.65002405,0.00020034,4]
[401321869,1768134645627,-454.65002405,0.00020223,4]
[401321870,1768134645636,-454.65002405,0.00020223,4]
[401321871,1768134645645,-354.84,0.000204,2]
[401321873,1768134645655,-192.83,0.000204,2]
[401321875,1768134645664,-506.7938,0.00020411,5]
[401321877,1768134645674,-454.65002405,0.00020412,4]
[401321878,1768134645683,-454.65002405,0.00020412,4]
[401321879,1768134645692,-494.3,0.00020587,2]
[401321880,1768134645701,-472.34968043,0.00020599,2]
[401321881,1768134645710,-454.65002405,0.00020601,4]
[401321882,1768134645720,-301.57435521,0.00020601,4]
[401321883,1768134645729,-1000.0,0.00020688,2]
[401321884,1768134645739,-1000.0,0.00020688,2]
[401321885,1768134645748,-1000.0,0.00020688,2]
[401321886,1768134645757,-354.84,0.000209,2]
[401321887,1768134645767,-192.83,0.000209,2]
[401321888,1768134645776,-979.02672324,0.00020959,2]
[401321889,1768134645786,-354.84,0.000214,2]
[401321890,1768134645796,-192.83,0.000214,2]
[401321891,1768134645805,-12011.78673207,0.000215,2]
[401321892,1768134645815,-171.7674379,0.00021596,2]
[401321893,1768134645825,-171.69587274,0.00021596,2]
[401321894,1768134645834,-354.84,0.000219,2]
[401321895,1768134645844,-192.83,0.000219,2]
[401321896,1768134645854,-585.11053,0.00021918,2]
[401321897,1768134645863,-152.90727816,0.00021918,2]
[401321898,1768134645872,-494.3,0.00022229,2]
[401321899,1768134645882,-354.84,0.000224,2]
[401321901,1768134645892,-192.83,0.000224,2]
[401321903,1768134645901,-171.69587274,0.00022505,56]
[401321904,1768134645912,-513.22609508,0.00022599,2]
[401321905,1768134645922,-1000.0,0.00022757,10]
[401321906,1768134645933,-1000.0,0.00022757,10]
[401321907,1768134645943,-1000.0,0.00022757,10]
[401321908,1768134645954,-715.0,0.00022757,10]
[401321909,1768134645963,-2140.41,0.000228,14]
[401321910,1768134645974,-13367.01,0.000228,2]
[401321911,1768134645984,-354.84,0.00023,2]
[401321912,1768134645992,-192.83,0.00023,2]
[401321913,1768134646002,-281.87,0.00023001,2]
[401321914,1768134646011,-979.02672324,0.00023209,2]
[401321915,1768134646020,-354.84,0.000235,2]
[401321916,1768134646029,-192.83,0.000235,2]
[401321917,1768134646041,-2870.56440789,0.0002362,2]
[401321918,1768134646051,-2000.0,0.00023825,7]
[401321919,1768134646060,-494.3,0.0002387,2]
[401321920,1768134646070,-354.84,0.00024,2]
[401321921,1768134646081,-192.83,0.00024,2]
[401321922,1768134646092,-354.84,0.000245,2]
[401321923,1768134646103,-554.10250973,0.00024599,2]
[401321924,1768134646114,-630.83049355,0.0002465,2]
[401321925,1768134646126,-2411.0,0.00024795,2]
[401321926,1768134646135,-500.0,0.00024795,2]
[401321927,1768134646145,-500.0,0.00024795,2]
[401321928,1768134646154,-500.0,0.00024795,2]
[401321929,1768134646163,-500.0,0.00024795,2]
[401321930,1768134646173,-154.30171575,0.00024795,2]
[401321931,1768134646183,-400097.821185,0.000249,2]
[401321932,1768134646194,-2411.0,0.00024932,2]
[401321933,1768134646205,-500.0,0.00024932,2]
[401321934,1768134646217,-500.0,0.00024932,2]
[401321935,1768134646227,-500.0,0.00024932,2]
[401321936,1768134646236,-500.0,0.00024932,2]
[401321937,1768134646246,-201.95802809,0.00024932,2]
[401321938,1768134646256,-187.35985221,0.00024932,2]
[401321939,1768134646265,-354.84,0.00025,2]
[401321941,1768134646275,-2675.46555144,0.00025,2]
[401321942,1768134646284,-20757.85955183,0.00025,2]
[401321943,1768134646294,-10364.0,0.00025,2]
[401321944,1768134646303,-500.0,0.00025,2]
[401321945,1768134646313,-2074.08935166,0.00025,2]
[401321946,1768134646324,-759.6161654,0.00025,2]
[401321947,1768134646336,-1000.0,0.00025033,10]
[401321948,1768134646346,-1000.0,0.00025033,10]
[401321949,1768134646355,-1000.0,0.00025033,10]
[401321950,1768134646365,-163.14839871,0.00025069,2]
[401321951,1768134646374,-2411.0,0.00025069,2]
[401321952,1768134646386,-223.56062369,0.00025069,2]
[401321953,1768134646396,-500.0,0.00025069,2]
[401321954,1768134646405,-500.0,0.00025069,2]
[401321955,1768134646414,-500.0,0.00025069,2]
[401321956,1768134646424,-250.0,0.00025205,2]
[401321957,1768134646434,-2411.0,0.00025206,2]
[401321958,1768134646443,-500.0,0.00025206,2]
[401321959,1768134646452,-500.0,0.00025206,2]
[401321960,1768134646462,-300.0,0.00025206,2]
[401321961,1768134646472,-250.0,0.00025206,2]
[401321962,1768134646481,-256.77529652,0.00025233,14]
[401321963,1768134646490,-585.11053,0.00025342,2]
[401321964,1768134646499,-2411.0,0.00025343,2]
[401321965,1768134646509,-500.00000003,0.00025343,2]
[401321966,1768134646519,-500.0,0.00025343,2]
[401321967,1768134646530,-979.02672324,0.00025458,2]
[401321968,1768134646539,-2411.0,0.0002548,2]
[401321969,1768134646549,-500.0,0.0002548,2]
[401321970,1768134646558,-354.84,0.000255,2]
[401321971,1768134646567,-1000.0,0.000255,2]
[401321972,1768134646576,-494.3,0.00025511,2]
[401321973,1768134646585,-2411.0,0.00025617,2]
[401321974,1768134646593,-500.0,0.00025617,2]
[401321975,1768134646602,-350.0,0.00025753,2]
[401321976,1768134646612,-2411.0,0.00025754,2]
[401321977,1768134646621,-500.0,0.00025754,2]
[401321978,1768134646630,-2026.41544348,0.0002587,2]
[401321979,1768134646639,-2411.0,0.00025891,2]
[401321980,1768134646648,-623.15407208,0.00025891,2]
[401321981,1768134646657,-354.84,0.00026,2]
[401321982,1768134646666,-53944.89189628,0.00026,30]
[401321983,1768134646675,-2411.0,0.00026028,2]
[401321984,1768134646684,-2411.0,0.00026165,2]
[401321985,1768134646694,-450.0,0.00026301,2]
[401321986,1768134646703,-2411.0,0.00026302,2]
[401321987,1768134646712,-2411.0,0.00026439,2]
[401321988,1768134646721,-354.84,0.000265,2]
[401321989,1768134646730,-2411.0,0.00026576,2]
[401321990,1768134646740,-594.97892438,0.00026599,2]
[401321991,1768134646751,-2411.0,0.00026713,2]
[401321992,1768134646761,-181.17141011,0.00026725,2]
[401321993,1768134646770,-550.0,0.00026849,2]
[401321994,1768134646779,-2411.0,0.0002685,2]
[401321995,1768134646788,-183.0,0.00026877,22]
[401321996,1768134646798,-2411.0,0.00026987,2]
[401321997,1768134646808,-354.84,0.000271,2]
[401321998,1768134646817,-2411.0,0.00027124,2]
[401321999,1768134646826,-494.3,0.00027152,2]
[401322000,1768134646836,-2411.0,0.00027261,2]
[401322001,1768134646846,-394.08412848,0.0002739,7]
[401322002,1768134646855,-702.10519323,0.00027397,5]
[401322003,1768134646864,-300.0,0.00027397,2]
[401322004,1768134646873,-300.0,0.00027397,2]
[401322005,1768134646882,-300.0,0.00027397,2]
[401322006,1768134646891,-300.0,0.00027397,2]
[401322007,1768134646900,-2411.0,0.00027398,2]
[401322008,1768134646909,-2411.0,0.00027535,2]
[401322009,1768134646918,-354.84,0.000276,2]
[401322010,1768134646927,-728.329358,0.00027656,7]
[401322011,1768134646937,-728.329358,0.00027656,7]
[401322012,1768134646947,-728.329358,0.00027656,7]
[401322013,1768134646957,-728.329358,0.00027656,7]
[401322014,1768134646966,-151.0,0.00027656,7]
[401322015,1768134647047,-151.0,0.00027656,7]
[401322016,1768134647063,-151.0,0.00027656,2]
[401322017,1768134647073,-151.0,0.00027656,7]
[401322018,1768134647083,-60251.976556,0.00027656,10]
[401322019,1768134647092,-2411.0,0.00027672,2]
[401322020,1768134647101,-979.02672324,0.00027708,2]
[401322021,1768134647110,-13367.01,0.000278,2]
[401322022,1768134647119,-2411.0,0.00027809,2]
[401322023,1768134647128,-2414.08292956,0.00027946,2]
[401322024,1768134647137,-15330.50011171,0.00028,2]
[401322025,1768134647146,-520.4204079,0.00028,2]
[401322026,1768134647156,-155.5739919,0.00028017,5]
[401322027,1768134647166,-5000.0,0.00028037,2]
[401322028,1768134647175,-354.84,0.000281,2]
[401322029,1768134647184,-213.0,0.00028521,29]
[401322030,1768134647193,-164.98,0.00028578,30]
[401322031,1768134647202,-635.85533904,0.00028599,2]
[401322032,1768134647211,-354.84,0.000286,2]
[401322033,1768134647221,-151.0,0.00028647,7]
[401322034,1768134647231,-151.0,0.00028647,7]
[401322035,1768134647240,-156.82101,0.00028647,7]
[401322036,1768134647250,-151.0,0.00028647,7]
[401322037,1768134647259,-834.392414,0.00028647,7]
[401322038,1768134647269,-834.392414,0.00028647,7]
[401322039,1768134647279,-834.392414,0.00028647,7]
[401322040,1768134647290,-834.392414,0.00028647,7]
[401322041,1768134647301,-151.0,0.00028647,7]
[401322042,1768134647310,-151.0,0.00028647,7]
[401322043,1768134647319,-151.0,0.00028647,7]
[401322044,1768134647329,-151.0,0.00028647,7]
[401322045,1768134647338,-2870.56440789,0.0002866,2]
[401322046,1768134647350,-429431.6619482,0.0002876,14]
[401322047,1768134647359,-151.0,0.0002876,7]
[401322048,1768134647369,-151.0,0.0002876,7]
[401322049,1768134647378,-1057.65818,0.0002876,7]
[401322050,1768134647388,-151.0,0.0002876,7]
[401322051,1768134647399,-1057.65818,0.0002876,7]
[401322052,1768134647408,-151.0,0.0002876,7]
[401322053,1768134647417,-1057.65818,0.0002876,7]
[401322054,1768134647427,-152.567384,0.0002876,7]
[401322055,1768134647445,-1057.65818,0.0002876,7]
[401322056,1768134647458,-151.0,0.0002876,7]
[401322057,1768134647469,-151.0,0.0002876,7]
[401322058,1768134647480,-151.0,0.0002876,7]
[401322059,1768134647490,-151.0,0.0002876,7]
[401322060,1768134647500,-151.0,0.0002876,7]
[401322061,1768134647511,-151.0,0.0002876,7]
[401322062,1768134647520,-585.11053,0.00028767,60]
[401322063,1768134647530,-494.3,0.00028794,3]
[401322064,1768134647540,-155.57399191,0.000289,5]
[401322065,1768134647551,-2412.5313746,0.00029,10]
[401322066,1768134647561,-18382.93313115,0.0002902,2]
[401322067,1768134647571,-151.0,0.0002902,7]
[401322068,1768134647580,-301.393574,0.0002902,7]
[401322069,1768134647590,-151.0,0.0002902,7]
[401322070,1768134647599,-151.0,0.0002902,7]
[401322071,1768134647608,-161.662681,0.0002902,7]
[401322072,1768134647618,-151.0,0.0002902,7]
[401322073,1768134647628,-173.073557,0.0002902,7]
[401322074,1768134647638,-151.0,0.0002902,7]
[401322075,1768134647647,-173.073557,0.0002902,7]
[401322076,1768134647657,-151.0,0.0002902,7]
[401322077,1768134647666,-173.073557,0.0002902,7]
[401322078,1768134647676,-151.0,0.0002902,7]
[401322079,1768134647686,-173.073557,0.0002902,7]
[401322080,1768134647695,-151.0,0.0002902,7]
[401322081,1768134647703,-151.0,0.0002902,7]
[401322082,1768134647712,-151.0,0.0002902,7]
[401322083,1768134647721,-2140.41,0.000291,14]
[401322084,1768134647731,-354.84,0.000291,2]
[401322085,1768134647741,-2665.91589527,0.00029513,2]
[401322086,1768134647750,-354.84,0.000296,2]
[401322087,1768134647759,-197.98,0.00029721,30]
[401322088,1768134647769,-155.57399191,0.00029794,5]
[401322089,1768134647779,-979.02672324,0.00029957,2]
[401322090,1768134647788,-5008.97139185,0.0003,10]
[401322091,1768134647798,-89030.96900453,0.0003,30]
[401322092,1768134647807,-258.50979211,0.0003,10]
[401322093,1768134647817,-500.0,0.00030048,7]
[401322094,1768134647827,-354.84,0.000301,2]
[401322095,1768134647836,-151.0,0.00030136,14]
[401322096,1768134647847,-300.0,0.00030137,5]
[401322097,1768134647857,-2099.00986107,0.0003014,120]
[401322098,1768134647867,-210.888,0.00030181,25]
[401322099,1768134647877,-5000.0,0.00030203,2]
[401322100,1768134647888,-494.3,0.00030435,4]
[401322101,1768134647898,-676.73175369,0.00030599,2]
[401322102,1768134647909,-155.5739919,0.00030658,10]
[401322103,1768134647918,-163.0,0.00030712,41]
[401322104,1768134647928,-230.98,0.00030864,30]
[401322105,1768134647943,-556.64090381,0.00031,30]
[401322106,1768134647952,-536.72987461,0.00031425,7]
[401322107,1768134647962,-234.89,0.00031508,2]
[401322108,1768134647973,-155.57399191,0.00031606,10]
[401322109,1768134647984,-162.09527137,0.00032,120]
[401322110,1768134647994,-263.97,0.00032007,30]
[401322111,1768134648005,-494.3,0.00032076,5]
[401322112,1768134648016,-979.02672324,0.00032207,2]
[401322113,1768134648027,-7000.0,0.000323,5]
[401322114,1768134648037,-5142.43646252,0.00032303,30]
[401322115,1768134648047,-5000.0,0.0003237,2]
[401322116,1768134648058,-435.0,0.00032382,2]
[401322117,1768134648068,-13367.01,0.000324,2]
[401322118,1768134648079,-1171.0,0.000324,120]
[401322119,1768134648088,-370.0,0.00032514,2]
[401322120,1768134648099,-155.5739919,0.00032584,10]
[401322121,1768134648109,-717.60816834,0.00032599,2]
[401322122,1768134648119,-435.0,0.00032658,2]
[401322123,1768134648128,-1112.0,0.00032667,2]
[401322124,1768134648137,-1112.0,0.00032668,2]
[401322125,1768134648146,-1112.0,0.00032669,2]
[401322126,1768134648156,-2120686.4723674,0.0003267,2]
[401322127,1768134648290,-271818.1060065,0.0003267,2]
[401322128,1768134648302,-848.78,0.0003267,2]
[401322129,1768134648559,500.0,8.501e-05,2]
[401322130,1768134648596,500.0,8.501e-05,2]
[401322131,1768134648731,500.0,8.501e-05,2]
[401322132,1768134648766,387.12145137,8.501e-05,2]
[401322133,1768134648800,500.0,8.501e-05,2]
[401322134,1768134648842,500.0,8.501e-05,2]
[401322135,1768134648878,500.0,8.501e-05,2]
[401322136,1768134648911,500.0,8.501e-05,2]
[401322137,1768134648949,500.0,8.501e-05,2]
[401322138,1768134648985,500.0,8.501e-05,2]
[401322139,1768134649020,162.62644536,8.501e-05,2]
[401322140,1768134649055,341.34178073,8.501e-05,2]
[401322141,1768134649078,158.65821927,8.501e-05,2]
[401322142,1768134649090,-192.83,0.000245,2]
[401322143,1768134649099,-192.83,0.00025,2]
[401322144,1768134649108,-192.83,0.000255,2]
[401322145,1768134649118,-192.83,0.00026,2]
[401322146,1768134649127,-192.83,0.000265,2]
[401322147,1768134649137,-35.85,0.000271,2]
[401322148,1768134649173,500.0,8.501e-05,2]
[401322149,1768134649208,500.0,8.501e-05,2]
[401322150,1768134649245,500.0,8.501e-05,2]
[401322151,1768134649281,500.0,8.501e-05,2]
[401322152,1768134649319,500.0,8.501e-05,2]
[401322153,1768134649356,500.0,8.501e-05,2]
[401322154,1768134649394,502.95960872,8.501e-05,2]
[401322155,1768134649426,500.0,8.501e-05,2]
[401322156,1768134649461,500.0,8.501e-05,2]
[401322157,1768134649491,500.0,8.501e-05,2]
[401322158,1768134649521,500.0,8.501e-05,2]
[401322159,1768134665939,172.7747507,8.501e-05,2]
[401322160,1768134679885,500.0,8.501e-05,2]
[401322161,1768134680106,650.0,8.501e-05,2]
[401322162,1768134680144,500.0,8.501e-05,2]
[401322163,1768134680185,500.0,8.501e-05,2]
[401322164,1768134680225,500.0,8.501e-05,2]
[401322165,1768134680261,500.0,8.501e-05,2]
[401322166,1768134707581,500.0,8.501e-05,2]
[401322167,1768134707630,500.0,8.501e-05,2]
[401322168,1768134707692,500.0,8.501e-05,2]
[401322169,1768134707747,500.0,8.501e-05,2]
[401322170,1768134707800,500.0,8.501e-05,2]
[401322171,1768134707856,200.0,8.501e-05,2]
[401322173,1768134787177,500.0,8.501e-05,2]
[401322174,1768134787506,500.0,8.501e-05,2]
[401322175,1768134788270,500.0,8.501e-05,2]
[401322176,1768134788625,500.0,8.501e-05,2]
[401322177,1768134788954,500.0,8.501e-05,2]
[401322178,1768134790298,200.0,8.501e-05,2]
[401322179,1768134791664,151.0,0.00030137,120]
[401322180,1768134832108,171.56,6.512e-05,2]
[401322181,1768134832530,343.13,6.822e-05,2]
[401322182,1768134832920,514.69,7.132e-05,2]
[401322183,1768134833750,420.63,7.443e-05,2]
[401322184,1768134833773,265.63,7.443e-05,2]
[401322185,1768134834110,857.82,7.753e-05,2]
[401322186,1768134834551,1029.39,8.063e-05,2]
[401322187,1768134834957,1200.95,8.373e-05,2]
[401322188,1768134855094,-1372.52,8.683e-05,2]
[401322189,1768134874128,151.0,0.00030137,120]
[401322195,1768134886054,169.4450261,6.581e-05,2]
[401322197,1768134909201,185.91,7.017e-05,2]
[401322198,1768134909621,278.87,7.336e-05,2]
[401322199,1768134910035,371.83,7.655e-05,2]
[401322200,1768134910447,464.79,7.974e-05,2]
[401322201,1768134910872,557.74,8.293e-05,2]
[401322202,1768134942238,-650.7,8.612e-05,2]
[401322203,1768134985545,183.04,7.402e-05,2]
[401322204,1768134985945,244.06,7.724e-05,2]
[401322205,1768134986362,305.07,8.046e-05,2]
[401322206,1768134986851,366.08,8.368e-05,2]
[401322207,1768135005958,-427.1,8.69e-05,2]
[401322208,1768135035008,155.0,5.98e-05,2]
[401322209,1768135079962,447.3,5.974e-05,2]
[401322210,1768135080215,447.3,5.974e-05,2]
[401322211,1768135080566,447.3,5.974e-05,2]
[401322212,1768135204334,279.1,5e-05,2]
[401322213,1768135217946,151.0,0.00030137,120]
[401322214,1768135241020,151.0,0.00030137,120]
[401322215,1768135250219,100.22707389,0.00025348,95]
[401322216,1768135250243,185.36863683,0.00025348,95]
[401322217,1768135250264,80.32837528,0.00025348,95]
[401322218,1768135266493,166.4,6.635e-05,2]
[401322219,1768135266909,208.0,6.911e-05,2]
[401322220,1768135267333,249.6,7.188e-05,2]
[401322221,1768135267751,291.2,7.464e-05,2]
[401322222,1768135268159,332.8,7.741e-05,2]
[401322223,1768135268575,374.4,8.017e-05,2]
[401322224,1768135269027,416.0,8.294e-05,2]
[401322225,1768135366086,151.0,0.00030137,120]
[401322226,1768135391541,151.0,0.00030137,120]
[401322227,1768135444306,188.0,0.00030137,120]
[401322258,1768135838133,-3831.2890542,8.987e-05,2]
[401322259,1768135838143,-16539.737552,9.099e-05,2]
[401322260,1768135838152,-300.0,9.28e-05,2]
[401322261,1768135838162,-300.0,9.28e-05,2]
[401322262,1768135838171,-300.0,9.28e-05,2]
[401322263,1768135838180,-300.0,9.28e-05,2]
[401322264,1768135838190,-300.0,9.28e-05,2]
[401322265,1768135838199,-300.0,9.28e-05,2]
[401322266,1768135838213,-300.0,9.28e-05,2]
[401322267,1768135838222,-300.0,9.28e-05,2]
[401322268,1768135838232,-300.0,9.28e-05,2]
[401322269,1768135838241,-300.0,9.28e-05,2]
[401322270,1768135838251,-300.0,9.28e-05,2]
[401322271,1768135838261,-300.0,9.28e-05,2]
[401322272,1768135838271,-300.0,9.28e-05,2]
[401322273,1768135838280,-300.0,9.28e-05,2]
[401322274,1768135838290,-300.0,9.28e-05,2]
[401322275,1768135838299,-300.2587553,9.664e-05,2]
[401322276,1768135838308,-555.0,9.664e-05,2]
[401322277,1768135838318,-620.0,9.998e-05,2]
[401322278,1768135838454,-300.0,9.999e-05,2]
[401322279,1768135838464,-500.0,9.999e-05,2]
[401322280,1768135838474,-500.0,9.999e-05,2]
[401322281,1768135838484,-500.0,9.999e-05,2]
[401322282,1768135838494,-344.62617307,9.999e-05,2]
[401322283,1768135838504,-500.0,9.999e-05,2]
[401322284,1768135838513,-500.0,9.999e-05,2]
[401322285,1768135838522,-636.9296582,9.999e-05,2]
[401322286,1768135838531,-240.65630942,9.999e-05,2]
[401322287,1768135838540,-327.97013448,9.999e-05,2]
[401322288,1768135838550,-500.0,9.999e-05,2]
[401322289,1768135838560,-581.1510695,9.999e-05,2]
[401322290,1768135838569,-500.0,9.999e-05,2]
[401322291,1768135838580,-163059.0,0.0001,2]
[401322292,1768135838590,-600.0,0.00010198,2]
[401322293,1768135838600,-720.0,0.00011218,2]
[401322294,1768135838610,-177.0,0.00011999,2]
[401322295,1768135838620,-250.0,0.00012068,2]
[401322296,1768135838629,-500.0,0.00012329,2]
[401322297,1768135838639,-500.0,0.00012329,2]
[401322298,1768135838648,-500.0,0.00012329,2]
[401322299,1768135838658,-500.0,0.00012329,2]
[401322300,1768135838667,-500.0,0.00012329,2]
[401322301,1768135838676,-500.0,0.00012329,2]
[401322302,1768135838686,-500.0,0.00012329,2]
[401322303,1768135838695,-500.0,0.00012329,2]
[401322304,1768135838705,-500.0,0.00012329,2]
[401322305,1768135838714,-500.0,0.00012329,2]
[401322306,1768135838723,-500.0,0.00012329,2]
[401322307,1768135838733,-500.0,0.00012329,2]
[401322308,1768135838742,-500.0,0.00012329,2]
[401322309,1768135838752,-500.0,0.00012329,2]
[401322310,1768135838762,-500.0,0.00012329,2]
[401322311,1768135838771,-500.0,0.00012329,2]
[401322312,1768135838782,-500.0,0.00012329,2]
[401322313,1768135838791,-500.0,0.00012329,2]
[401322314,1768135838800,-500.0,0.00012329,2]
[401322315,1768135838809,-500.0,0.00012329,2]
[401322316,1768135838819,-512.23375453,0.00012329,2]
[401322317,1768135838828,-500.0,0.00012329,2]
[401322318,1768135838838,-500.0,0.00012329,2]
[401322319,1768135838847,-500.0,0.00012329,2]
[401322320,1768135838858,-500.0,0.00012329,2]
[401322321,1768135838868,-500.0,0.00012329,2]
[401322322,1768135838878,-500.0,0.00012329,2]
[401322323,1768135838887,-500.0,0.00012329,2]
[401322324,1768135838899,-500.0,0.00012329,2]
[401322325,1768135838909,-500.0,0.00012329,2]
[401322326,1768135838919,-500.0,0.00012329,2]
[401322327,1768135838928,-500.0,0.00012329,2]
[401322328,1768135838938,-500.0,0.00012329,2]
[401322329,1768135838948,-500.0,0.00012329,2]
[401322330,1768135838957,-500.0,0.00012329,2]